bitfinex/quotes_ETHUSD_20250827
["timestamp","ask_amount","ask_price","bid_price","bid_amount"]
[1756268094788,10.50499998,4636.3,4636.2,0.31030001]
[1756268094989,12.66189232,4636.3,4636.2,0.31030001]
[1756268095691,12.66189232,4636.3,4636.2,4.62730001]
[1756268095692,10.50499998,4636.3,4636.2,4.62730001]
[1756268096060,12.66189232,4636.3,4636.2,4.62730001]
[1756268096262,10.50499998,4636.3,4636.2,4.62730001]
[1756268096671,5.60289234,4636.3,4636.2,4.18230001]
[1756268096883,5.60289234,4636.3,4636.2,0.31030001]
[1756268097081,5.60289234,4636.3,4636.2,3.87200001]
[1756268097285,5.60289234,4636.3,4636.2,1e-08]
[1756268098084,6.37886342,4636.3,4636.2,1e-08]
[1756268098285,6.66876342,4636.3,4636.2,1e-08]
[1756268099468,6.37886342,4636.3,4636.2,1e-08]
[1756268099695,5.60289234,4636.3,4636.2,1e-08]
[1756268099861,3.446,4636.3,4636.2,0.30200001]
[1756268100262,5.89279234,4636.3,4636.2,1e-08]
[1756268100505,5.94749234,4636.3,4636.2,1e-08]
[1756268100813,3.446,4636.3,4636.2,0.73380001]
[1756268101195,0.002,4636.7,4636.2,0.92936567]
[1756268101369,0.002,4636.7,4636.4,2.15684582]
[1756268101562,0.002,4636.7,4636.6,2.15675279]
[1756268101895,0.002,4636.7,4636.6,2.79322141]
[1756268102211,0.002,4636.7,4636.6,3.22502141]
[1756268102365,0.002,4636.7,4636.6,3.20345389]
[1756268102872,0.002,4636.7,4636.6,7.07245389]
[1756268103079,0.002,4636.7,4636.6,8.16128186]
[1756268103629,0.002,4636.7,4636.6,8.04394642]
[1756268103770,0.002,4636.7,4636.6,8.16107969]
[1756268103967,0.002,4636.7,4636.6,8.26907969]
[1756268104272,0.002,4636.7,4636.6,0.72269893]
[1756268104496,0.002,4636.7,4636.6,4.59069893]
[1756268104818,2.15675279,4636.6,4636.5,1.659]
[1756268104969,5.44665279,4636.6,4636.5,1.659]
[1756268105295,2.15675279,4636.6,4636.5,2.3928]
[1756268105487,2.15675279,4636.6,4636.5,1.961]
[1756268106098,2.44665279,4636.6,4636.5,1.659]
[1756268106401,5.88899595,4636.6,4636.5,1.659]
[1756268107365,5.70709595,4636.6,4636.5,1.659]
[1756268107565,5.26475279,4636.6,4636.5,1.659]
[1756268107813,5.15675279,4636.6,4636.5,2.3928]
[1756268108829,5.15675279,4636.6,4636.5,1.659]
[1756268109161,5.44665279,4636.6,4636.5,5.526]
[1756268109321,6.2179855,4636.6,4636.5,5.525]
[1756268109513,6.2179855,4636.6,4636.2,1e-08]
[1756268109514,4.49033271,4636.6,4636.3,3.866]
[1756268109747,0.108,4636.3,4636.2,1e-08]
[1756268109917,2.57971407,4636.3,4636.2,1e-08]
[1756268110260,6.95871407,4636.3,4636.2,1e-08]
[1756268110435,5.81693887,4636.2,4636.1,1e-08]
[1756268110611,6.24603887,4636.2,4636.1,1e-08]
[1756268110815,6.53593887,4636.2,4636.1,1e-08]
[1756268111117,7.30727158,4636.2,4636.1,1e-08]
[1756268112213,6.32617158,4636.2,4636.1,1e-08]
[1756268112556,7.41527158,4636.2,4636.1,1e-08]
[1756268112765,11.28027158,4636.2,4636.1,1e-08]
[1756268112927,6.21817158,4636.2,4636.1,1e-08]
[1756268113122,6.32617158,4636.2,4636.1,1e-08]
[1756268113642,6.32617158,4636.2,4634.5,1.31026501]
[1756268113643,2.15768351,4634.6,4634.5,1.31026501]
[1756268113857,2.15763348,4634.8,4634.5,2.04406501]
[1756268114024,2.15759403,4634.8,4634.6,0.4318]
[1756268114421,0.648741,4634.8,4634.7,0.7338]
[1756268114636,2.1575904,4634.8,4634.7,0.7338]
[1756268115241,2.15754447,4634.9,4634.7,0.7338]
[1756268115458,2.8062119,4635.0,4634.7,0.302]
[1756268115649,3.648714,4635.0,4634.8,0.4533759]
[1756268115854,3.648714,4635.0,4634.9,0.7338]
[1756268115855,2.15750235,4635.0,4634.9,0.7338]
[1756268116017,2.15750235,4635.0,4634.9,4.5978]
[1756268116213,2.15742343,4635.2,4634.9,0.302]
[1756268116419,2.15768124,4634.7,4634.5,1.74206501]
[1756268116627,2.15759445,4634.8,4634.6,4.166]
[1756268116833,2.15752004,4635.0,4634.7,0.4318]
[1756268117155,3.0,4635.2,4634.5,1.31026501]
[1756268117451,2.15768351,4634.6,4634.5,1.31026501]
[1756268117669,2.15768351,4634.6,4634.5,5.17326501]
[1756268117827,2.15768351,4634.6,4634.5,1.31026501]
[1756268118023,2.15768351,4634.6,4634.5,1.61226501]
[1756268118214,3.0,4635.2,4634.5,1.61226501]
[1756268118420,2.15745075,4635.1,4634.5,5.90706501]
[1756268118619,0.648668,4635.3,4634.6,0.4318]
[1756268118840,5.80602566,4635.3,4635.2,0.302]
[1756268119128,5.80602566,4635.3,4635.2,4.5968]
[1756268119129,0.648668,4635.3,4635.2,4.5968]
[1756268119644,3.0,4635.9,4635.2,4.5968]
[1756268119843,0.64858,4635.9,4635.3,0.89148]
[1756268120021,7.05899998,4636.1,4635.8,0.302]
[1756268120223,3.0,4636.0,4635.9,0.4318]
[1756268120480,3.0,4636.0,4635.4,5.522]
[1756268120671,5.15704452,4636.0,4635.9,0.302]
[1756268121129,5.15704452,4636.0,4635.9,0.7338]
[1756268121647,3.0,4636.0,4635.9,0.7338]
[1756268121950,3.0,4636.0,4635.9,0.302]
[1756268122474,1.0,4933.0,4635.9,4.5958]
[1756268122475,0.022,4637.8,4635.9,4.5958]
[1756268122764,0.648374,4637.4,4636.0,0.57683139]
[1756268122943,0.648374,4637.4,4636.1,3.97825139]
[1756268123122,2.15659474,4637.0,4636.6,0.302]
[1756268123322,2.15659474,4637.0,4636.6,1.961]
[1756268123734,7.05899998,4636.9,4636.6,5.822]
[1756268123931,7.05899998,4636.9,4636.6,6.2538]
[1756268124259,7.05899998,4636.9,4636.6,6.3618]
[1756268125040,7.05899998,4636.9,4636.6,2.5008]
[1756268125239,2.15670238,4636.8,4636.6,5.929]
[1756268125561,9.21561529,4636.9,4636.6,5.929]
[1756268125782,7.05899998,4636.9,4636.6,6.3608]
[1756268125982,7.05899998,4636.9,4636.6,7.21256846]
[1756268126678,7.05899998,4636.9,4636.6,7.21156846]
[1756268126829,7.05899998,4636.9,4636.6,9.36832125]
[1756268128035,7.05899998,4636.9,4636.6,7.21156846]
[1756268128269,7.05899998,4636.9,4636.6,9.36832125]
[1756268128774,7.05899998,4636.9,4636.6,5.62640018]
[1756268128945,7.05899998,4636.9,4636.6,9.48440018]
[1756268129344,0.002,4637.2,4636.6,9.48440018]
[1756268129965,0.002,4637.2,4636.6,10.14440018]
[1756268131151,1e-08,4636.7,4636.6,13.14440018]
[1756268131364,0.002,4637.7,4637.6,2.81628773]
[1756268131690,0.002,4637.7,4637.6,16.76092953]
[1756268131846,0.002,4637.7,4637.6,17.50576666]
[1756268132573,0.002,4638.3,4637.8,2.15619474]
[1756268132880,0.002,4638.3,4638.2,2.92400879]
[1756268133149,0.002,4638.3,4638.2,7.2181478]
[1756268133269,0.002,4638.3,4638.2,7.66348772]
[1756268134604,0.002,4638.3,4638.2,3.80748772]
[1756268134908,0.002,4638.3,4638.2,7.6840478]
[1756268135108,0.002,4638.3,4638.2,8.8215575]
[1756268137078,0.002,4639.5,4638.2,8.8215575]
[1756268137079,1e-08,4638.8,4638.7,5.8157764]
[1756268137408,1e-08,4638.8,4638.7,11.44385533]
[1756268137581,1e-08,4638.8,4638.7,13.6782259]
[1756268138291,1e-08,4639.6,4639.4,2.81545113]
[1756268138487,1e-08,4639.6,4639.5,14.98785032]
[1756268138798,1e-08,4639.8,4639.7,5.81531176]
[1756268138998,1e-08,4639.8,4639.7,11.44214959]
[1756268139185,1e-08,4639.8,4639.7,12.20855416]
[1756268139400,1e-08,4639.8,4639.7,14.46019786]
[1756268139600,1e-08,4639.8,4639.7,10.49135546]
[1756268139805,0.2495,4640.9,4640.7,2.81484732]
[1756268140008,0.2495,4640.9,4640.7,8.43284732]
[1756268140194,0.2495,4640.9,4640.7,9.19924732]
[1756268140393,0.2495,4640.9,4640.7,10.33466427]
[1756268140590,0.2495,4640.9,4640.7,10.49933626]
[1756268140823,0.2495,4640.9,4640.7,10.74883626]
[1756268141030,1e-08,4640.9,4640.8,2.81480089]
[1756268141215,1e-08,4640.9,4640.8,21.86050456]
[1756268141419,1e-08,4640.9,4640.8,22.0229342]
[1756268141621,1e-08,4640.9,4640.8,22.13833646]
[1756268143613,1e-08,4641.8,4641.7,2.81438309]
[1756268143822,1e-08,4641.8,4641.7,17.01881113]
[1756268144028,1e-08,4641.8,4641.7,17.8716673]
[1756268144333,1e-08,4641.8,4641.7,17.98693667]
[1756268144550,1e-08,4641.8,4641.7,17.8716673]
[1756268145208,0.02,4642.8,4642.7,2.81391905]
[1756268145402,0.02,4642.8,4642.7,8.34145824]
[1756268145603,0.02,4642.8,4642.7,3.81091905]
[1756268145922,0.02,4642.8,4642.7,7.68145824]
[1756268146103,0.02,4642.8,4642.7,7.65991905]
[1756268146301,0.02,4642.8,4642.7,8.64131036]
[1756268146500,0.02,4642.8,4642.7,9.30131036]
[1756268147001,0.02,4642.8,4642.7,9.29931036]
[1756268148061,0.02,4642.8,4642.7,7.14539131]
[1756268148240,0.02,4642.8,4642.7,9.29931036]
[1756268148625,0.02,4642.8,4642.7,9.59881036]
[1756268149345,0.3261,4642.8,4642.7,6.48439131]
[1756268149542,0.3261,4642.8,4642.7,8.63831036]
[1756268149922,0.02,4642.8,4642.7,8.63831036]
[1756268150111,0.3261,4642.8,4642.7,6.48439131]
[1756268150441,0.02,4642.8,4642.7,9.29831036]
[1756268150644,0.02,4642.8,4642.7,9.59781036]
[1756268151029,0.02,4642.8,4642.7,9.29831036]
[1756268151424,0.02,4642.8,4642.7,9.45916133]
[1756268151817,0.02,4642.8,4642.7,10.22556133]
[1756268152235,0.02,4642.8,4642.7,9.45816133]
[1756268153025,0.02,4642.8,4642.7,5.61416133]
[1756268153354,0.3261,4642.8,4642.7,1.81885097]
[1756268153526,0.3261,4642.8,4642.7,5.66285097]
[1756268153721,0.3261,4642.8,4642.7,1.81885097]
[1756268153922,0.7693,4642.8,4642.7,5.66285097]
[1756268154258,0.3261,4642.8,4642.7,5.66285097]
[1756268154625,0.3261,4642.8,4642.7,7.81677002]
[1756268155159,0.3261,4642.8,4642.7,7.92477002]
[1756268155346,0.3261,4642.8,4642.7,5.77085097]
[1756268155566,0.02,4642.8,4642.7,9.46135512]
[1756268155728,0.02,4642.8,4642.7,9.16185512]
[1756268156259,0.02,4642.8,4642.7,9.46135512]
[1756268156621,0.3261,4642.8,4642.7,4.65785512]
[1756268156826,0.3261,4642.8,4642.7,7.92377002]
[1756268157027,0.3261,4642.8,4642.7,4.08077002]
[1756268157227,0.7693,4642.8,4642.7,5.607]
[1756268157428,0.7713,4642.8,4642.7,5.607]
[1756268158249,0.7713,4642.8,4642.7,1.765]
[1756268158434,2.92517266,4642.8,4642.7,5.607]
[1756268159159,3.43306423,4642.8,4642.7,5.606]
[1756268159368,0.7713,4642.8,4642.7,5.606]
[1756268159550,2.92517266,4642.8,4642.7,5.606]
[1756268159726,0.3281,4642.8,4642.7,5.606]
[1756268159932,0.765,4642.8,4642.7,5.606]
[1756268160140,0.765,4642.8,4642.7,1.765]
[1756268160438,0.765,4642.8,4642.7,5.606]
[1756268160634,0.3281,4642.8,4642.7,5.606]
[1756268160830,0.765,4642.8,4642.7,5.498]
[1756268161043,3.21075216,4642.8,4642.7,1.765]
[1756268161373,3.21075216,4642.8,4642.7,5.498]
[1756268161936,3.21075216,4642.8,4642.7,1.657]
[1756268162174,3.21075216,4642.8,4642.7,5.498]
[1756268162175,0.3281,4642.8,4642.7,5.498]
[1756268162481,0.3281,4642.8,4642.7,5.606]
[1756268162783,0.022,4642.8,4642.7,8.04891905]
[1756268162986,0.022,4642.8,4642.7,2.90161725]
[1756268163189,0.3375,4642.8,4642.7,7.87524415]
[1756268163341,0.022,4642.8,4642.7,7.87524415]
[1756268163528,0.022,4642.8,4642.7,9.27674415]
[1756268164144,0.022,4642.8,4642.7,5.43674415]
[1756268164346,0.3375,4642.8,4642.7,4.03524415]
[1756268164547,0.3375,4642.8,4642.7,5.7213251]
[1756268165465,0.3375,4642.8,4642.7,7.87524415]
[1756268165667,0.3375,4642.8,4642.7,5.7213251]
[1756268165868,0.7744,4642.8,4642.7,1.8813251]
[1756268166067,2.92827266,4642.8,4642.7,5.7203251]
[1756268166452,0.7744,4642.8,4642.7,5.7203251]
[1756268166652,0.022,4642.8,4642.7,5.6123251]
[1756268166852,0.022,4642.8,4642.7,8.93987282]
[1756268167443,0.022,4642.8,4642.7,9.39237282]
[1756268167938,0.022,4642.8,4642.7,4.81187282]
[1756268168137,0.3375,4642.8,4642.7,1.8813251]
[1756268168552,0.3375,4642.8,4642.7,5.7203251]
[1756268168952,0.3375,4642.8,4642.7,1.88199668]
[1756268169178,0.3375,4642.8,4642.7,5.71999668]
[1756268169679,0.3375,4642.8,4642.7,5.603]
[1756268169839,0.3375,4642.8,4642.7,5.72006844]
[1756268170345,0.022,4642.8,4642.7,7.87398749]
[1756268171267,0.022,4642.8,4642.7,9.61828619]
[1756268172646,0.022,4642.8,4642.7,10.27828619]
[1756268172847,0.022,4642.8,4642.7,5.98778619]
[1756268173079,0.022,4642.8,4642.7,9.82478619]
[1756268173579,0.022,4642.8,4642.7,5.32778619]
[1756268173744,0.022,4642.8,4642.7,8.87578619]
[1756268173948,0.3375,4642.8,4642.7,5.71906844]
[1756268174167,0.022,4642.8,4642.7,8.16198749]
[1756268174344,0.022,4642.8,4642.7,7.87298749]
[1756268174544,0.022,4642.8,4642.7,4.03598749]
[1756268174874,0.022,4642.8,4642.7,7.89452668]
[1756268175075,0.022,4642.8,4642.7,9.1668398]
[1756268175481,0.3375,4642.8,4642.7,2.88692075]
[1756268175650,0.3375,4642.8,4642.7,5.71906844]
[1756268175977,0.3375,4642.8,4642.7,1.88206844]
[1756268176181,0.3375,4642.8,4642.7,5.71806844]
[1756268176478,0.8744,4642.8,4642.7,1.88206844]
[1756268176658,0.8744,4642.8,4642.7,5.71806844]
[1756268177057,3.02827266,4642.8,4642.7,1.88206844]
[1756268177260,0.8744,4642.8,4642.7,5.71806844]
[1756268178156,0.122,4642.8,4642.7,5.71806844]
[1756268178361,0.122,4642.8,4642.7,8.65919412]
[1756268178679,0.122,4642.8,4642.7,9.40069412]
[1756268179078,0.122,4642.8,4642.7,9.94362568]
[1756268179284,0.122,4642.8,4642.7,10.06075274]
[1756268179874,0.122,4642.8,4642.7,6.22475274]
[1756268180188,0.122,4642.8,4642.7,10.05975274]
[1756268180385,0.122,4642.8,4642.7,13.05975274]
[1756268181989,0.122,4642.8,4640.0,0.4369]
[1756268181990,2.15407432,4642.4,4641.3,0.001]
[1756268182152,2.15429026,4641.9,4641.3,0.001]
[1756268182357,3.26277088,4641.9,4641.4,0.297]
[1756268182681,4.55216919,4641.9,4641.4,0.297]
[1756268182881,4.73755505,4641.9,4641.4,0.297]
[1756268183664,3.96091773,4641.9,4641.4,0.297]
[1756268184072,3.96091773,4641.9,4641.3,0.001]
[1756268184073,6.97726103,4641.9,4641.8,1e-08]
[1756268184276,6.96091773,4641.9,4641.8,1e-08]
[1756268184474,6.96091773,4641.9,4641.3,0.001]
[1756268184475,2.15452234,4641.4,4641.3,0.001]
[1756268184651,2.46704724,4641.4,4641.3,1e-08]
[1756268184854,6.2166515,4641.4,4641.3,1e-08]
[1756268185065,2.15486762,4640.7,4639.1,1.656]
[1756268185264,2.26321886,4639.9,4639.1,1.656]
[1756268185465,2.78044802,4639.9,4639.2,3.835]
[1756268185665,3.21734802,4639.9,4639.2,3.835]
[1756268186283,2.15549759,4639.3,4639.1,1.764]
[1756268186484,2.15567437,4639.0,4638.8,0.02]
[1756268186689,5.15567437,4639.0,4638.9,1.703]
[1756268186888,5.47117437,4639.0,4638.9,1.703]
[1756268187095,5.47117437,4639.0,4638.8,0.02]
[1756268187291,5.90767437,4639.0,4638.9,3.835]
[1756268187894,6.54468592,4639.0,4638.8,0.02]
[1756268188097,3.4528433,4638.9,4638.8,0.02]
[1756268188294,5.59218345,4638.9,4638.8,0.02]
[1756268188510,2.44318345,4638.9,4638.8,0.02]
[1756268189414,2.44318345,4638.9,4638.8,0.128]
[1756268189624,2.44318345,4638.9,4638.8,3.856]
[1756268189793,3.63956085,4638.9,4638.8,0.02]
[1756268189995,3.65590415,4638.9,4638.8,0.02]
[1756268190208,2.15614825,4637.9,4637.2,1.657]
[1756268190408,2.15614825,4637.9,4637.6,1.793]
[1756268190631,2.44364825,4637.9,4637.6,1.793]
[1756268190786,0.4365,4638.8,4637.7,0.02156241]
[1756268191128,0.108,4639.0,4638.3,0.108]
[1756268191306,2.15587334,4638.5,4638.4,2.783]
[1756268191497,2.44337334,4638.5,4638.4,2.783]
[1756268191677,2.44337334,4638.5,4638.3,0.108]
[1756268191678,0.2875,4638.5,4638.3,0.108]
[1756268191884,2.15586935,4638.5,4638.4,3.836]
[1756268192893,2.15591583,4638.4,4638.3,3.837]
[1756268193419,6.31109435,4638.4,4638.3,0.001]
[1756268193714,6.41909435,4638.4,4638.3,0.001]
[1756268194196,5.55141583,4638.4,4638.3,0.001]
[1756268194391,5.44341583,4638.4,4638.3,0.001]
[1756268195083,5.87991583,4638.4,4638.3,0.001]
[1756268195913,5.15591583,4638.4,4638.3,0.001]
[1756268196419,5.44341583,4638.4,4638.3,0.001]
[1756268196604,6.25779435,4638.4,4638.3,0.001]
[1756268197016,6.69429435,4638.4,4638.3,0.001]
[1756268197823,10.53129435,4638.4,4638.3,1e-08]
[1756268198324,10.53129435,4638.4,4636.1,0.4535]
[1756268198513,2.15652023,4637.1,4637.0,0.108]
[1756268199519,2.15646653,4637.3,4637.0,0.108]
[1756268199833,3.108,4637.6,4637.0,0.108]
[1756268200192,0.108,4637.6,4637.1,2.15647783]
[1756268200391,0.108,4638.7,4637.5,0.4003]
[1756268200637,0.108,4639.0,4637.6,2.13306287]
[1756268200842,2.15581713,4638.7,4638.3,0.108]
[1756268201123,2.38218246,4638.7,4638.3,0.108]
[1756268201313,2.15582287,4638.6,4638.3,0.108]
[1756268201623,2.44341583,4638.4,4638.3,0.108]
[1756268201823,2.44341583,4638.4,4637.6,1.658]
[1756268201824,0.3038433,4638.4,4637.6,1.658]
[1756268202003,2.15624124,4637.7,4637.6,1.658]
[1756268202326,0.22638171,4638.7,4637.6,0.7458]
[1756268202487,0.22638171,4638.7,4637.8,0.108]
[1756268202488,2.15606692,4638.1,4637.8,0.108]
[1756268202687,2.15606692,4638.1,4637.6,0.2923]
[1756268202688,2.15619725,4637.8,4637.7,0.108]
[1756268202888,2.44369725,4637.8,4636.9,1.658]
[1756268203102,2.15627551,4637.7,4637.5,0.108]
[1756268203299,2.15628773,4637.6,4637.5,0.108]
[1756268203519,0.2875,4637.6,4637.5,0.108]
[1756268203722,2.15623381,4637.8,4637.5,0.108]
[1756268203925,2.26387317,4638.5,4637.5,0.8538]
[1756268204221,5.15596231,4638.3,4635.8,0.4535]
[1756268204431,2.15653886,4637.1,4635.8,4.2905]
[1756268204730,2.15651116,4637.2,4635.9,0.4535]
[1756268204893,3.0,4637.0,4636.8,0.02]
[1756268205097,10.05899998,4636.9,4636.8,0.02]
[1756268206300,12.21561323,4636.9,4636.8,0.02]
[1756268207295,10.05899998,4636.9,4636.8,0.02]
[1756268207495,12.21561323,4636.9,4636.8,0.02]
[1756268207937,12.93961323,4636.9,4636.8,0.02]
[1756268208168,13.55996767,4636.9,4636.8,0.02]
[1756268209602,13.12346767,4636.9,4636.8,0.021]
[1756268209815,12.50311323,4636.9,4636.8,0.021]
[1756268210000,12.21561323,4636.9,4636.8,0.021]
[1756268210603,12.93961323,4636.9,4636.8,0.021]
[1756268211021,12.50311323,4636.9,4636.8,0.021]
[1756268211221,12.41621365,4636.9,4636.8,0.021]
[1756268211532,12.93961323,4636.9,4636.8,0.021]
[1756268211730,13.14021344,4636.9,4636.8,0.021]
[1756268212148,12.70371344,4636.9,4636.8,0.021]
[1756268212345,12.41621344,4636.9,4636.8,0.021]
[1756268212848,13.14021344,4636.9,4636.8,0.021]
[1756268213019,12.41621344,4636.9,4636.8,0.021]
[1756268213218,12.70371344,4636.9,4636.8,0.021]
[1756268213627,12.41621344,4636.9,4636.8,0.021]
[1756268214049,12.21561323,4636.9,4636.8,0.021]
[1756268214567,10.05899998,4636.9,4636.8,0.021]
[1756268214772,2.81596508,4638.3,4636.8,0.021]
[1756268214773,7.05899998,4638.2,4636.8,0.9845746]
[1756268214926,2.15626546,4637.7,4636.8,3.03145916]
[1756268215121,2.15626546,4637.7,4637.5,0.108]
[1756268215361,3.946,4638.1,4637.5,0.108]
[1756268215571,0.20142693,4638.0,4637.5,0.108]
[1756268215722,2.15616686,4637.9,4637.6,0.2923]
[1756268216344,0.108,4638.1,4637.6,0.2923]
[1756268216554,0.20149223,4638.1,4637.6,0.2923]
[1756268216728,7.05899998,4638.2,4637.8,0.108]
[1756268216930,2.15605547,4638.1,4637.8,0.108]
[1756268217128,9.21501549,4638.2,4638.1,0.108]
[1756268217523,7.05899998,4638.2,4638.1,0.108]
[1756268217726,2.15583302,4638.6,4638.1,0.4154]
[1756268217925,7.05899998,4638.5,4638.1,0.4154]
[1756268218135,3.838,4638.7,4638.1,0.4154]
[1756268218334,2.15586935,4638.5,4638.4,0.108]
[1756268218570,2.45316935,4638.5,4637.6,2.15628205]
[1756268218731,2.15592848,4638.4,4638.2,0.108]
[1756268219131,2.15596231,4638.3,4638.2,0.108]
[1756268219475,2.45329531,4638.3,4637.9,0.108]
[1756268219677,0.2973,4638.3,4637.9,0.108]
[1756268219848,7.05899998,4638.7,4638.2,2.46337246]
[1756268220049,0.02,4638.8,4638.2,0.8687]
[1756268220346,0.62146863,4638.8,4638.2,0.108]
[1756268220874,0.02,4638.8,4638.6,0.108]
[1756268221941,0.02,4638.8,4638.7,2.9164764]
[1756268222142,0.02,4638.8,4638.7,2.93803416]
[1756268222562,0.002,4638.9,4638.8,2.15572993]
[1756268222844,0.002,4638.9,4638.8,7.38733186]
[1756268223045,0.002,4638.9,4638.8,7.69473186]
[1756268224474,0.002,4638.9,4638.8,1.42570193]
[1756268224641,0.002,4638.9,4638.8,4.1434]
[1756268224973,0.002,4638.9,4638.8,6.29912993]
[1756268226157,0.002,4638.9,4638.8,2.46312993]
[1756268226354,0.002,4638.9,4638.8,6.29912993]
[1756268226555,0.002,4638.9,4638.8,2.91642993]
[1756268226743,0.002,4638.9,4638.8,7.30837359]
[1756268226958,0.002,4638.9,4638.8,7.2868163]
[1756268227458,0.002,4638.9,4638.8,7.3068163]
[1756268229861,0.002,4638.9,4638.8,10.9668163]
[1756268230407,0.002,4638.9,4638.8,10.9648163]
[1756268231961,1e-08,4638.9,4638.8,10.9648163]
[1756268232157,1e-08,4638.9,4638.8,16.1458163]
[1756268232768,1e-08,4638.9,4638.8,16.1258163]
[1756268238498,1e-08,4638.9,4638.8,12.2918163]
[1756268238805,1e-08,4638.9,4638.8,16.1238163]
[1756268240014,0.2,4642.9,4638.8,16.1238163]
[1756268240015,0.10814319,4642.7,4638.9,3.66]
[1756268240178,0.4277,4642.4,4640.7,5.92284732]
[1756268240382,0.4277,4642.4,4640.7,16.89824732]
[1756268240582,0.4277,4642.4,4640.7,17.35154732]
[1756268240887,0.4477,4641.8,4640.7,19.14989102]
[1756268241414,0.02,4641.8,4640.7,19.60319102]
[1756268241788,0.3173,4640.8,4640.7,8.17449102]
[1756268242012,0.745,4640.8,4640.7,3.831]
[1756268242177,0.02,4640.8,4640.7,5.98584732]
[1756268242377,0.02,4640.8,4640.7,6.58443205]
[1756268242602,0.745,4640.8,4640.7,5.488]
[1756268242802,0.745,4640.8,4640.7,7.64284732]
[1756268242981,0.745,4640.8,4640.7,5.488]
[1756268244191,0.745,4640.8,4640.7,7.64284732]
[1756268244395,0.3173,4640.8,4640.7,7.64284732]
[1756268244932,0.745,4640.8,4640.7,5.488]
[1756268245126,0.745,4640.8,4640.7,1.657]
[1756268245426,0.747,4640.8,4640.7,5.487]
[1756268245918,0.747,4640.8,4640.7,7.64184732]
[1756268246117,0.022,4640.8,4640.7,12.37343205]
[1756268246422,0.002,4641.3,4640.7,12.37343205]
[1756268246423,0.002,4641.3,4641.2,2.81461518]
[1756268246726,0.002,4641.3,4641.2,6.66616133]
[1756268246884,0.002,4641.3,4641.2,7.83410028]
[1756268247084,0.002,4641.3,4641.2,8.28740028]
[1756268247393,0.002,4641.3,4641.2,7.78410028]
[1756268247590,0.002,4641.3,4641.2,3.64670028]
[1756268247779,0.002,4641.3,4641.2,9.61616133]
[1756268247982,0.002,4641.3,4641.2,9.90101518]
[1756268248514,0.002,4641.3,4641.2,10.53171304]
[1756268249511,0.002,4641.3,4641.2,10.06421304]
[1756268249884,0.002,4641.3,4641.2,10.06321304]
[1756268250081,0.002,4641.3,4641.2,11.28500331]
[1756268250722,0.002,4641.3,4641.2,7.45600331]
[1756268250912,0.002,4641.3,4641.2,10.97860331]
[1756268251114,0.002,4641.3,4641.2,7.14960331]
[1756268251313,0.002,4641.3,4641.2,10.62500331]
[1756268251515,0.002,4641.3,4641.2,11.28500331]
[1756268251897,0.002,4641.3,4641.2,11.39300331]
[1756268252097,0.002,4641.3,4641.2,7.25760331]
[1756268252297,0.002,4641.3,4641.2,11.08660331]
[1756268252485,0.002,4641.3,4641.2,11.39300331]
[1756268252690,0.022,4641.8,4641.7,2.15438309]
[1756268252914,0.022,4641.8,4641.7,11.32092692]
[1756268253251,0.022,4641.8,4641.7,11.71378309]
[1756268256199,0.022,4641.8,4641.7,12.18128309]
[1756268256595,0.022,4641.8,4641.7,7.88478309]
[1756268256796,0.022,4641.8,4641.7,12.41030699]
[1756268256797,0.7641,4641.8,4641.7,12.41030699]
[1756268257420,0.7641,4641.8,4641.7,6.91838309]
[1756268257622,0.7641,4641.8,4641.7,7.74538309]
[1756268258137,0.7641,4641.8,4641.7,5.591]
[1756268258524,0.7641,4641.8,4641.7,1.764]
[1756268258834,2.91843667,4641.8,4641.7,5.591]
[1756268259039,0.7641,4641.8,4641.7,5.591]
[1756268259739,2.91843667,4641.8,4641.7,3.935]
[1756268260041,3.42570527,4641.8,4641.7,3.935]
[1756268261315,3.42570527,4641.8,4641.7,3.827]
[1756268261839,1.2713686,4641.8,4641.3,3.935]
[1756268262040,2.1544295,4641.6,4641.3,3.935]
[1756268262342,2.46712234,4641.4,4641.3,3.827]
[1756268262502,2.89662234,4641.4,4641.3,3.827]
[1756268262935,0.7421,4641.4,4641.3,3.827]
[1756268263248,0.022,4641.8,4641.3,6.53211602]
[1756268263440,0.022,4641.8,4641.3,4.48555466]
[1756268263744,0.022,4641.8,4641.7,0.108]
[1756268263950,0.022,4641.8,4641.7,6.08938309]
[1756268264107,0.3346,4641.8,4641.7,3.935]
[1756268264545,0.7641,4641.8,4641.7,3.935]
[1756268264955,0.7641,4641.8,4641.7,0.108]
[1756268265367,0.7641,4641.8,4641.7,6.08838309]
[1756268265368,0.022,4641.8,4641.7,6.08838309]
[1756268265948,0.7641,4641.8,4641.7,0.108]
[1756268266148,0.7641,4641.8,4641.7,3.934]
[1756268266440,2.91843667,4641.8,4641.7,3.934]
[1756268266638,3.42570071,4641.8,4641.7,3.934]
[1756268266860,2.1544295,4641.6,4641.5,3.826]
[1756268267133,2.8965295,4641.6,4641.3,3.934]
[1756268267337,2.15452234,4641.4,4641.3,3.934]
[1756268267538,2.89662234,4641.4,4641.3,3.934]
[1756268267974,2.89662234,4641.4,4641.3,3.826]
[1756268268651,0.7421,4641.4,4641.3,3.826]
[1756268268980,2.89662234,4641.4,4641.3,3.826]
[1756268269152,2.89662234,4641.4,4641.3,3.934]
[1756268269667,0.7421,4641.4,4641.3,3.934]
[1756268270449,3.1862803,4641.4,4641.1,3.827]
[1756268270777,2.15461518,4641.2,4641.1,0.001]
[1756268270941,2.15461518,4641.2,4641.1,3.827]
[1756268271141,2.89671518,4641.2,4641.1,3.827]